[Event "Titled Tuesday Blitz June 6 Early 2023"]
[White "Garcia Jimenez, Francisco Javier"]
[Black "Antonova, Nadezhda"]
[WhiteFideId "2231590"]
[BlackFideId "14700182"]
[WhiteElo "2246"]
[BlackElo "1795"]
[Result "1-0"]
[Round "8"]
[TimeControl "180+2"]
[Date "2023.06.06"]
[WhiteClock "0:00:30"]
[BlackClock "0:00:07"]
[Board "132"]

1. e4 {[%clk 0:03:00]}  c6 {[%clk 0:02:58]} 2. Nf3 {[%clk 0:03:00]}  d5 {[%clk 0:02:59]} 3. exd5 {[%clk 0:03:01]}  cxd5 {[%clk 0:02:59]} 4. Ne5 {[%clk 0:03:01]}  Qc7 {[%clk 0:02:55]} 5. d4 {[%clk 0:03:01]}  Nf6 {[%clk 0:02:54]} 6. f4 {[%clk 0:03:01]}  Bf5 {[%clk 0:02:51]} 7. Bd3 {[%clk 0:02:59]}  Bxd3 {[%clk 0:02:50]} 8. Qxd3 {[%clk 0:03:00]}  e6 {[%clk 0:02:51]} 9. O-O {[%clk 0:03:00]}  Bd6 {[%clk 0:02:48]} 10. Nd2 {[%clk 0:02:59]}  O-O {[%clk 0:02:49]} 11. Rf3 {[%clk 0:02:58]}  Nc6 {[%clk 0:02:41]} 12. c3 {[%clk 0:02:58]}  a6 {[%clk 0:02:40]} 13. Rh3 {[%clk 0:02:58]}  g6 {[%clk 0:02:35]} 14. b3 {[%clk 0:02:57]}  Rac8 {[%clk 0:02:32]} 15. Bb2 {[%clk 0:02:57]}  b5 {[%clk 0:02:32]} 16. Rf1 {[%clk 0:02:55]}  b4 {[%clk 0:02:27]} 17. c4 {[%clk 0:02:55]}  Rfd8 {[%clk 0:02:23]} 18. c5 {[%clk 0:02:53]}  Bf8 {[%clk 0:02:20]} 19. Qg3 {[%clk 0:02:48]}  Bg7 {[%clk 0:02:19]} 20. Qh4 {[%clk 0:02:46]}  a5 {[%clk 0:02:16]} 21. Ndf3 {[%clk 0:02:43]}  h6 {[%clk 0:02:14]} 22. g4 {[%clk 0:02:41]}  Ne4 {[%clk 0:02:12]} 23. Bc1 {[%clk 0:02:33]}  Qe7 {[%clk 0:01:57]} 24. Qe1 {[%clk 0:02:13]}  Nxe5 {[%clk 0:01:42]} 25. Nxe5 {[%clk 0:02:03]}  Nc3 {[%clk 0:01:24]} 26. f5 {[%clk 0:02:00]}  exf5 {[%clk 0:01:22]} 27. gxf5 {[%clk 0:01:56]}  Bxe5 {[%clk 0:01:20]} 28. dxe5 {[%clk 0:01:54]}  Qxc5+ {[%clk 0:01:14]} 29. Kh1 {[%clk 0:01:51]}  h5 {[%clk 0:01:06]} 30. e6 {[%clk 0:01:49]}  Rc7 {[%clk 0:00:59]} 31. exf7+ {[%clk 0:01:35]}  Rxf7 {[%clk 0:00:58]} 32. fxg6 {[%clk 0:01:36]}  Rxf1+ {[%clk 0:00:54]} 33. Qxf1 {[%clk 0:01:37]}  Rf8 {[%clk 0:00:47]} 34. Rf3 {[%clk 0:01:35]}  Ne4 {[%clk 0:00:43]} 35. Rf7 {[%clk 0:01:24]}  Nf2+ {[%clk 0:00:29]} 36. Kg2 {[%clk 0:01:22]}  Ng4 {[%clk 0:00:25]} 37. h3 {[%clk 0:01:15]}  Ne5 {[%clk 0:00:18]} 38. Rxf8+ {[%clk 0:00:44]}  Qxf8 {[%clk 0:00:19]} 39. Qxf8+ {[%clk 0:00:39]}  Kxf8 {[%clk 0:00:20]} 40. Bh6+ {[%clk 0:00:33]}  Kg8 {[%clk 0:00:18]} 41. g7 {[%clk 0:00:33]}  Nf7 {[%clk 0:00:11]} 42. Be3 {[%clk 0:00:31]}  Nd8 {[%clk 0:00:07]} 43. Bd4 {[%clk 0:00:23]}  Nc6 {[%clk 0:00:07]} 44. Bf6 {[%clk 0:00:23]}  d4 {[%clk 0:00:05]} 45. Kf3 {[%clk 0:00:23]}  Kf7 {[%clk 0:00:05]} 46. Ke4 {[%clk 0:00:23]}  Kg8 {[%clk 0:00:05]} 47. Bxd4 {[%clk 0:00:23]}  Nxd4 {[%clk 0:00:04]} 48. Kxd4 {[%clk 0:00:24]}  Kxg7 {[%clk 0:00:04]} 49. Kc5 {[%clk 0:00:24]}  h4 {[%clk 0:00:04]} 50. Kb5 {[%clk 0:00:25]}  Kf6 {[%clk 0:00:04]} 51. Kxa5 {[%clk 0:00:26]}  Kf5 {[%clk 0:00:05]} 52. Kxb4 {[%clk 0:00:26]}  Kf4 {[%clk 0:00:05]} 53. a4 {[%clk 0:00:27]}  Kg3 {[%clk 0:00:06]} 54. a5 {[%clk 0:00:28]}  Kxh3 {[%clk 0:00:06]} 55. a6 {[%clk 0:00:29]}  Kg3 {[%clk 0:00:06]} 56. a7 {[%clk 0:00:30]}  h3 {[%clk 0:00:06]} 57. a8=Q {[%clk 0:00:31]}  h2 {[%clk 0:00:07]} 58. Qh1 {[%clk 0:00:30]} 1-0


[Site "https://www.chess.com"]

[Event "Titled Tuesday Blitz June 6 Early 2023"]
[White "Do Nascimento,Christian Almeida"]
[Black "Sarkar, Justin"]
[WhiteFideId "2143801"]
[BlackFideId "2010011"]
[WhiteElo "2078"]
[BlackElo "2151"]
[Result "1/2-1/2"]
[Round "8"]
[TimeControl "180+2"]
[Date "2023.06.06"]
[WhiteClock "0:00:05"]
[BlackClock "0:00:06"]
[Board "134"]

1. e4 {[%clk 0:02:53]}  c5 {[%clk 0:02:56]} 2. Nf3 {[%clk 0:02:52]}  Nc6 {[%clk 0:02:55]} 3. Bb5 {[%clk 0:02:52]}  g6 {[%clk 0:02:44]} 4. d4 {[%clk 0:02:47]}  cxd4 {[%clk 0:02:42]} 5. Nxd4 {[%clk 0:02:45]}  Bg7 {[%clk 0:02:39]} 6. Be3 {[%clk 0:02:31]}  Qb6 {[%clk 0:02:28]} 7. Bxc6 {[%clk 0:02:26]}  Qxb2 {[%clk 0:01:04]} 8. Nd2 {[%clk 0:02:23]}  dxc6 {[%clk 0:00:47]} 9. Rb1 {[%clk 0:02:15]}  Qxa2 {[%clk 0:00:34]} 10. O-O {[%clk 0:02:11]}  Qa5 {[%clk 0:00:27]} 11. Qe2 {[%clk 0:01:48]}  Nf6 {[%clk 0:00:25]} 12. Nc4 {[%clk 0:01:45]}  Qc7 {[%clk 0:00:24]} 13. e5 {[%clk 0:01:39]}  Nd5 {[%clk 0:00:22]} 14. e6 {[%clk 0:01:37]}  fxe6 {[%clk 0:00:19]} 15. Qf3 {[%clk 0:01:32]}  Bf6 {[%clk 0:00:18]} 16. Rbd1 {[%clk 0:01:12]}  O-O {[%clk 0:00:17]} 17. Qh3 {[%clk 0:00:46]}  e5 {[%clk 0:00:16]} 18. Ne6 {[%clk 0:00:46]}  Bxe6 {[%clk 0:00:11]} 19. Qxe6+ {[%clk 0:00:46]}  Kg7 {[%clk 0:00:11]} 20. Bc5 {[%clk 0:00:38]}  Qc8 {[%clk 0:00:09]} 21. Qxc8 {[%clk 0:00:36]}  Raxc8 {[%clk 0:00:08]} 22. Bxa7 {[%clk 0:00:31]}  b5 {[%clk 0:00:07]} 23. Ne3 {[%clk 0:00:30]}  Nc3 {[%clk 0:00:06]} 24. Rd7 {[%clk 0:00:26]}  Rfd8 {[%clk 0:00:05]} 25. Rb7 {[%clk 0:00:21]}  Rd2 {[%clk 0:00:04]} 26. Bc5 {[%clk 0:00:20]}  Kf7 {[%clk 0:00:04]} 27. g3 {[%clk 0:00:16]}  Nd5 {[%clk 0:00:03]} 28. Rc1 {[%clk 0:00:09]}  e4 {[%clk 0:00:03]} 29. Kf1 {[%clk 0:00:08]}  Nxe3+ {[%clk 0:00:03]} 30. Bxe3 {[%clk 0:00:09]}  Rd5 {[%clk 0:00:02]} 31. c4 {[%clk 0:00:08]}  bxc4 {[%clk 0:00:02]} 32. Rxc4 {[%clk 0:00:09]}  c5 {[%clk 0:00:02]} 33. Rxe4 {[%clk 0:00:08]}  Rd6 {[%clk 0:00:01]} 34. Rc4 {[%clk 0:00:08]}  Rdc6 {[%clk 0:00:02]} 35. Rb5 {[%clk 0:00:08]}  R8c7 {[%clk 0:00:02]} 36. Rbxc5 {[%clk 0:00:08]}  Rxc5 {[%clk 0:00:02]} 37. Rxc5 {[%clk 0:00:09]}  Rxc5 {[%clk 0:00:02]} 38. Bxc5 {[%clk 0:00:10]}  e6 {[%clk 0:00:03]} 39. Be3 {[%clk 0:00:10]}  h5 {[%clk 0:00:03]} 40. Ke2 {[%clk 0:00:11]}  e5 {[%clk 0:00:03]} 41. h3 {[%clk 0:00:11]}  Ke6 {[%clk 0:00:04]} 42. Kd3 {[%clk 0:00:12]}  Kf5 {[%clk 0:00:04]} 43. f3 {[%clk 0:00:10]}  Ke6 {[%clk 0:00:03]} 44. Ke4 {[%clk 0:00:10]}  Be7 {[%clk 0:00:03]} 45. Bc1 {[%clk 0:00:09]}  Bd6 {[%clk 0:00:03]} 46. Bb2 {[%clk 0:00:09]}  Bc7 {[%clk 0:00:03]} 47. Bc3 {[%clk 0:00:10]}  Bd6 {[%clk 0:00:03]} 48. Be1 {[%clk 0:00:10]}  Bc7 {[%clk 0:00:04]} 49. g4 {[%clk 0:00:10]}  hxg4 {[%clk 0:00:03]} 50. fxg4 {[%clk 0:00:11]}  Bd6 {[%clk 0:00:04]} 51. Bg3 {[%clk 0:00:11]}  Bc7 {[%clk 0:00:04]} 52. h4 {[%clk 0:00:11]}  Bd6 {[%clk 0:00:04]} 53. Bf2 {[%clk 0:00:10]}  Bc7 {[%clk 0:00:04]} 54. Bg1 {[%clk 0:00:11]}  Bd6 {[%clk 0:00:05]} 55. Bh2 {[%clk 0:00:12]}  Bc7 {[%clk 0:00:05]} 56. h5 {[%clk 0:00:08]}  gxh5 {[%clk 0:00:05]} 57. gxh5 {[%clk 0:00:09]}  Kf6 {[%clk 0:00:05]} 58. Bg3 {[%clk 0:00:04]}  Kg5 {[%clk 0:00:06]} 59. Bxe5 {[%clk 0:00:04]}  Bxe5 {[%clk 0:00:05]} 60. Kxe5 {[%clk 0:00:05]}  Kh6 {[%clk 0:00:05]} 61. Kf4 {[%clk 0:00:05]}  Kxh5 {[%clk 0:00:06]} 1/2-1/2


[Site "https://www.chess.com"]

[Event "Titled Tuesday Blitz June 6 Early 2023"]
[White "Kuzmin, Ilya"]
[Black "Womacka, Mathias"]
[WhiteFideId "4153863"]
[BlackFideId "4611390"]
[WhiteElo "2093"]
[BlackElo "2377"]
[Result "0-1"]
[Round "8"]
[TimeControl "180+2"]
[Date "2023.06.06"]
[WhiteClock "0:01:18"]
[BlackClock "0:01:34"]
[Board "136"]

1. d4 {[%clk 0:03:00]}  Nf6 {[%clk 0:02:59]} 2. c4 {[%clk 0:03:00]}  e6 {[%clk 0:02:58]} 3. Nf3 {[%clk 0:02:59]}  Bb4+ {[%clk 0:02:58]} 4. Nbd2 {[%clk 0:02:59]}  O-O {[%clk 0:02:57]} 5. a3 {[%clk 0:02:59]}  Be7 {[%clk 0:02:56]} 6. e4 {[%clk 0:02:53]}  d5 {[%clk 0:02:57]} 7. e5 {[%clk 0:02:53]}  Nfd7 {[%clk 0:02:56]} 8. cxd5 {[%clk 0:02:50]}  exd5 {[%clk 0:02:55]} 9. Bd3 {[%clk 0:02:49]}  c5 {[%clk 0:02:55]} 10. O-O {[%clk 0:02:43]}  Nc6 {[%clk 0:02:48]} 11. Re1 {[%clk 0:02:43]}  a5 {[%clk 0:02:40]} 12. Nf1 {[%clk 0:02:37]}  cxd4 {[%clk 0:02:40]} 13. Ng3 {[%clk 0:02:34]}  Nc5 {[%clk 0:02:38]} 14. Nxd4 {[%clk 0:02:11]}  Nxd4 {[%clk 0:02:34]} 15. Bxh7+ {[%clk 0:02:04]}  Kxh7 {[%clk 0:02:33]} 16. Qxd4 {[%clk 0:02:04]}  Kg8 {[%clk 0:02:27]} 17. h4 {[%clk 0:01:52]}  Nb3 {[%clk 0:02:24]} 18. Qf4 {[%clk 0:01:46]}  Nxa1 {[%clk 0:02:23]} 19. Nh5 {[%clk 0:01:38]}  Bxh4 {[%clk 0:01:59]} 20. Nxg7 {[%clk 0:01:37]}  Kxg7 {[%clk 0:01:40]} 21. Qh6+ {[%clk 0:01:32]}  Kg8 {[%clk 0:01:40]} 22. Re3 {[%clk 0:01:21]}  Ra6 {[%clk 0:01:37]} 23. e6 {[%clk 0:01:18]}  Rxe6 {[%clk 0:01:34]} 0-1


[Site "https://www.chess.com"]

[Event "Titled Tuesday Blitz June 6 Early 2023"]
[White "Avazkhonov, Alikhon"]
[Black "Abrosimov, Vladimir"]
[WhiteFideId "14208504"]
[BlackFideId "4166892"]
[WhiteElo "1739"]
[BlackElo "2336"]
[Result "1-0"]
[Round "8"]
[TimeControl "180+2"]
[Date "2023.06.06"]
[WhiteClock "0:02:52"]
[BlackClock "0:01:42"]
[Board "138"]

1. d4 {[%clk 0:03:00]}  Nf6 {[%clk 0:02:56]} 2. c4 {[%clk 0:03:01]}  g6 {[%clk 0:02:57]} 3. Nc3 {[%clk 0:03:01]}  Bg7 {[%clk 0:02:58]} 4. e4 {[%clk 0:03:02]}  d6 {[%clk 0:02:58]} 5. f3 {[%clk 0:03:02]}  Nbd7 {[%clk 0:02:59]} 6. Be3 {[%clk 0:03:03]}  O-O {[%clk 0:03:00]} 7. Qd2 {[%clk 0:03:03]}  e5 {[%clk 0:03:00]} 8. Nge2 {[%clk 0:03:03]}  Re8 {[%clk 0:03:01]} 9. O-O-O {[%clk 0:03:03]}  c6 {[%clk 0:02:59]} 10. Kb1 {[%clk 0:03:03]}  Qc7 {[%clk 0:02:59]} 11. g4 {[%clk 0:03:04]}  Nb6 {[%clk 0:02:56]} 12. Ng3 {[%clk 0:03:01]}  Be6 {[%clk 0:02:55]} 13. d5 {[%clk 0:03:00]}  cxd5 {[%clk 0:02:55]} 14. cxd5 {[%clk 0:03:01]}  Bd7 {[%clk 0:02:54]} 15. Rc1 {[%clk 0:03:01]}  Qd8 {[%clk 0:02:53]} 16. g5 {[%clk 0:03:00]}  Nh5 {[%clk 0:02:46]} 17. Nxh5 {[%clk 0:03:00]}  gxh5 {[%clk 0:02:47]} 18. h4 {[%clk 0:03:00]}  a6 {[%clk 0:02:45]} 19. Ne2 {[%clk 0:03:01]}  Nc8 {[%clk 0:02:42]} 20. Ng3 {[%clk 0:03:01]}  Ne7 {[%clk 0:02:42]} 21. Nxh5 {[%clk 0:03:01]}  Ng6 {[%clk 0:02:43]} 22. Bh3 {[%clk 0:02:59]}  Bxh3 {[%clk 0:02:42]} 23. Rxh3 {[%clk 0:03:00]}  Qd7 {[%clk 0:02:42]} 24. Rg3 {[%clk 0:02:57]}  Rec8 {[%clk 0:02:43]} 25. Nf6+ {[%clk 0:02:52]}  Bxf6 {[%clk 0:02:38]} 26. gxf6 {[%clk 0:02:53]}  Rxc1+ {[%clk 0:02:38]} 27. Qxc1 {[%clk 0:02:54]}  Rc8 {[%clk 0:02:38]} 28. Qg1 {[%clk 0:02:51]}  h5 {[%clk 0:02:15]} 29. Rxg6+ {[%clk 0:02:50]}  fxg6 {[%clk 0:02:13]} 30. Qxg6+ {[%clk 0:02:51]}  Kh8 {[%clk 0:02:13]} 31. f7 {[%clk 0:02:52]}  Qc7 {[%clk 0:01:42]} 32. Qh6# {[%clk 0:02:52]} 1-0


[Site "https://www.chess.com"]

[Event "Titled Tuesday Blitz June 6 Early 2023"]
[White "Marchesich, Giovanni"]
[Black "Mazurkiewicz, Michal"]
[WhiteFideId "2824790"]
[BlackFideId "1124943"]
[WhiteElo "2213"]
[BlackElo "2063"]
[Result "1-0"]
[Round "8"]
[TimeControl "180+2"]
[Date "2023.06.06"]
[WhiteClock "0:02:03"]
[BlackClock "0:00:02"]
[Board "139"]

1. d4 {[%clk 0:03:00]}  Nf6 {[%clk 0:03:00]} 2. Bf4 {[%clk 0:03:00]}  g6 {[%clk 0:03:00]} 3. Nc3 {[%clk 0:03:00]}  d5 {[%clk 0:03:00]} 4. e3 {[%clk 0:02:59]}  Bg7 {[%clk 0:02:58]} 5. h4 {[%clk 0:03:00]}  c6 {[%clk 0:02:53]} 6. Be2 {[%clk 0:02:52]}  h6 {[%clk 0:02:51]} 7. Nf3 {[%clk 0:02:50]}  Bf5 {[%clk 0:02:48]} 8. Ne5 {[%clk 0:02:49]}  Nbd7 {[%clk 0:02:47]} 9. g4 {[%clk 0:02:47]}  Be6 {[%clk 0:02:47]} 10. Qd3 {[%clk 0:02:34]}  Qc8 {[%clk 0:02:19]} 11. f3 {[%clk 0:02:26]}  Nh7 {[%clk 0:01:57]} 12. Nxg6 {[%clk 0:02:20]}  Rg8 {[%clk 0:00:42]} 13. Nxe7 {[%clk 0:02:19]}  Kxe7 {[%clk 0:00:42]} 14. Qxh7 {[%clk 0:02:18]}  Nf6 {[%clk 0:00:34]} 15. Qd3 {[%clk 0:02:17]}  Qd8 {[%clk 0:00:34]} 16. O-O-O {[%clk 0:02:17]}  Qa5 {[%clk 0:00:34]} 17. Kb1 {[%clk 0:02:16]}  b5 {[%clk 0:00:34]} 18. Rdg1 {[%clk 0:02:13]}  c5 {[%clk 0:00:25]} 19. Qxb5 {[%clk 0:02:04]}  Qc7 {[%clk 0:00:02]} 20. Bxc7 {[%clk 0:02:03]} 1-0


[Site "https://www.chess.com"]

[Event "Titled Tuesday Blitz June 6 Early 2023"]
[White "Clawitter, Craig"]
[Black "Hoffmann, Asa"]
[WhiteFideId "2023105"]
[BlackFideId "2001470"]
[WhiteElo "2234"]
[BlackElo "2117"]
[Result "0-1"]
[Round "8"]
[TimeControl "180+2"]
[Date "2023.06.06"]
[WhiteClock "0:00:01"]
[BlackClock "0:00:39"]
[Board "142"]

1. e4 {[%clk 0:02:56]}  d6 {[%clk 0:02:59]} 2. d4 {[%clk 0:02:56]}  Nf6 {[%clk 0:02:57]} 3. Nc3 {[%clk 0:02:57]}  c6 {[%clk 0:02:55]} 4. f4 {[%clk 0:02:55]}  Qa5 {[%clk 0:02:54]} 5. e5 {[%clk 0:02:55]}  Nd5 {[%clk 0:02:53]} 6. Bd2 {[%clk 0:02:45]}  Bf5 {[%clk 0:02:51]} 7. Nf3 {[%clk 0:02:39]}  e6 {[%clk 0:02:50]} 8. Ne4 {[%clk 0:02:19]}  Qc7 {[%clk 0:02:46]} 9. Nxd6+ {[%clk 0:02:16]}  Bxd6 {[%clk 0:02:44]} 10. exd6 {[%clk 0:02:17]}  Qxd6 {[%clk 0:02:45]} 11. Ne5 {[%clk 0:02:17]}  O-O {[%clk 0:02:39]} 12. a3 {[%clk 0:02:02]}  Nd7 {[%clk 0:02:37]} 13. c4 {[%clk 0:02:01]}  N5f6 {[%clk 0:02:30]} 14. Bb4 {[%clk 0:02:01]}  c5 {[%clk 0:02:18]} 15. dxc5 {[%clk 0:01:53]}  Qxd1+ {[%clk 0:02:06]} 16. Rxd1 {[%clk 0:01:54]}  Nxe5 {[%clk 0:02:00]} 17. fxe5 {[%clk 0:01:55]}  Ng4 {[%clk 0:01:51]} 18. c6 {[%clk 0:01:41]}  bxc6 {[%clk 0:01:43]} 19. Bxf8 {[%clk 0:01:40]}  Kxf8 {[%clk 0:01:43]} 20. Rd7 {[%clk 0:01:30]}  Nxe5 {[%clk 0:01:41]} 21. Rc7 {[%clk 0:01:30]}  a5 {[%clk 0:01:36]} 22. Kd1 {[%clk 0:00:49]}  Rb8 {[%clk 0:01:25]} 23. Kc1 {[%clk 0:00:49]}  Ke8 {[%clk 0:01:24]} 24. Be2 {[%clk 0:00:44]}  Rb3 {[%clk 0:01:15]} 25. Rd1 {[%clk 0:00:33]}  Re3 {[%clk 0:01:13]} 26. Bf1 {[%clk 0:00:18]}  g5 {[%clk 0:01:11]} 27. c5 {[%clk 0:00:17]}  Kf8 {[%clk 0:01:03]} 28. Ba6 {[%clk 0:00:12]}  h5 {[%clk 0:00:56]} 29. h3 {[%clk 0:00:12]}  h4 {[%clk 0:00:55]} 30. Rd2 {[%clk 0:00:09]}  Re1+ {[%clk 0:00:53]} 31. Rd1 {[%clk 0:00:10]}  Re3 {[%clk 0:00:52]} 32. Rd2 {[%clk 0:00:09]}  Rg3 {[%clk 0:00:51]} 33. Kd1 {[%clk 0:00:07]}  g4 {[%clk 0:00:48]} 34. hxg4 {[%clk 0:00:05]}  Bxg4+ {[%clk 0:00:47]} 35. Ke1 {[%clk 0:00:05]}  Bf5 {[%clk 0:00:47]} 36. Rf2 {[%clk 0:00:04]}  Rb3 {[%clk 0:00:44]} 37. Re2 {[%clk 0:00:03]}  Ng4 {[%clk 0:00:41]} 38. Rxc6 {[%clk 0:00:01]}  Kg7 {[%clk 0:00:40]} 39. Rc7 {[%clk 0:00:01]}  Ne3 {[%clk 0:00:39]} 0-1


[Site "https://www.chess.com"]

[Event "Titled Tuesday Blitz June 6 Early 2023"]
[White "le-castor-faineant"]
[Black "Korpics, Zsolt"]
[BlackFideId "705241"]
[WhiteElo "2227"]
[BlackElo "2349"]
[Result "1/2-1/2"]
[Round "8"]
[TimeControl "180+2"]
[Date "2023.06.06"]
[WhiteClock "0:00:03"]
[BlackClock "0:00:02"]
[Board "143"]

1. e4 {[%clk 0:02:56]}  c5 {[%clk 0:02:59]} 2. Nf3 {[%clk 0:02:56]}  e6 {[%clk 0:02:58]} 3. c3 {[%clk 0:02:55]}  Nf6 {[%clk 0:02:57]} 4. e5 {[%clk 0:02:55]}  Nd5 {[%clk 0:02:58]} 5. d4 {[%clk 0:02:56]}  cxd4 {[%clk 0:02:58]} 6. cxd4 {[%clk 0:02:56]}  d6 {[%clk 0:02:59]} 7. Bc4 {[%clk 0:02:54]}  Nb6 {[%clk 0:02:58]} 8. Bb3 {[%clk 0:02:53]}  Nc6 {[%clk 0:02:57]} 9. O-O {[%clk 0:02:53]}  Be7 {[%clk 0:02:39]} 10. Nc3 {[%clk 0:02:52]}  O-O {[%clk 0:02:33]} 11. exd6 {[%clk 0:02:46]}  Bxd6 {[%clk 0:02:32]} 12. Bg5 {[%clk 0:02:45]}  Be7 {[%clk 0:02:29]} 13. Bf4 {[%clk 0:02:43]}  Nd5 {[%clk 0:02:21]} 14. Nxd5 {[%clk 0:02:42]}  exd5 {[%clk 0:02:22]} 15. Ne5 {[%clk 0:02:40]}  Nxe5 {[%clk 0:02:18]} 16. dxe5 {[%clk 0:02:37]}  Be6 {[%clk 0:02:17]} 17. Be3 {[%clk 0:02:35]}  Rc8 {[%clk 0:01:17]} 18. Bd4 {[%clk 0:02:18]}  a6 {[%clk 0:01:09]} 19. Qd3 {[%clk 0:02:06]}  Qd7 {[%clk 0:01:08]} 20. Rad1 {[%clk 0:01:33]}  Rfd8 {[%clk 0:00:55]} 21. Bb6 {[%clk 0:01:14]}  Re8 {[%clk 0:00:38]} 22. Bxd5 {[%clk 0:01:11]}  Bxd5 {[%clk 0:00:38]} 23. Qxd5 {[%clk 0:01:12]}  Qc6 {[%clk 0:00:20]} 24. Qxc6 {[%clk 0:01:00]}  Rxc6 {[%clk 0:00:21]} 25. Bd4 {[%clk 0:01:01]}  Rc2 {[%clk 0:00:15]} 26. Bc3 {[%clk 0:01:00]}  b5 {[%clk 0:00:15]} 27. Rd2 {[%clk 0:00:56]}  Rxd2 {[%clk 0:00:14]} 28. Bxd2 {[%clk 0:00:56]}  Rd8 {[%clk 0:00:14]} 29. Bc3 {[%clk 0:00:54]}  b4 {[%clk 0:00:14]} 30. Be1 {[%clk 0:00:53]}  Rd1 {[%clk 0:00:14]} 31. g3 {[%clk 0:00:35]}  Rb1 {[%clk 0:00:14]} 32. a3 {[%clk 0:00:11]}  bxa3 {[%clk 0:00:13]} 33. bxa3 {[%clk 0:00:12]}  Bxa3 {[%clk 0:00:13]} 34. f4 {[%clk 0:00:12]}  Bc5+ {[%clk 0:00:11]} 35. Kg2 {[%clk 0:00:12]}  Rb2+ {[%clk 0:00:10]} 36. Kh3 {[%clk 0:00:12]}  g6 {[%clk 0:00:06]} 37. Bc3 {[%clk 0:00:08]}  Rc2 {[%clk 0:00:06]} 38. Ba5 {[%clk 0:00:08]}  Ra2 {[%clk 0:00:06]} 39. Bc3 {[%clk 0:00:08]}  a5 {[%clk 0:00:06]} 40. Rb1 {[%clk 0:00:07]}  Kf8 {[%clk 0:00:02]} 41. Rb8+ {[%clk 0:00:07]}  Ke7 {[%clk 0:00:02]} 42. Rb7+ {[%clk 0:00:07]}  Ke6 {[%clk 0:00:02]} 43. Rc7 {[%clk 0:00:07]}  Be7 {[%clk 0:00:02]} 44. Ra7 {[%clk 0:00:06]}  Kd5 {[%clk 0:00:02]} 45. Rxa5+ {[%clk 0:00:05]}  Rxa5 {[%clk 0:00:01]} 46. Bxa5 {[%clk 0:00:06]}  Ke4 {[%clk 0:00:02]} 47. Kg4 {[%clk 0:00:06]}  h5+ {[%clk 0:00:02]} 48. Kh3 {[%clk 0:00:06]}  Kf3 {[%clk 0:00:02]} 49. Bc3 {[%clk 0:00:05]}  g5 {[%clk 0:00:02]} 50. fxg5 {[%clk 0:00:05]}  Bxg5 {[%clk 0:00:03]} 51. Bb2 {[%clk 0:00:03]}  Be7 {[%clk 0:00:03]} 52. Bc3 {[%clk 0:00:02]}  Bg5 {[%clk 0:00:03]} 53. Bb2 {[%clk 0:00:03]}  Be7 {[%clk 0:00:04]} 54. Bc3 {[%clk 0:00:03]}  Bg5 {[%clk 0:00:02]} 1/2-1/2


[Site "https://www.chess.com"]